bitfinex/quotes_ETHUSD_20250326
["timestamp","ask_amount","ask_price","bid_price","bid_amount"]
[1742998453337,0.55,2035.3,2035.0,0.04913495]
[1742998453577,0.55,2035.1,2034.8,5.72753]
[1742998453876,0.55,2035.1,2034.9,4.91412]
[1742998454060,0.55,2035.3,2035.0,4.914]
[1742998454437,0.55,2035.3,2034.9,4.91418]
[1742998454867,0.55,2035.3,2034.8,5.72753]
[1742998455044,0.55,2035.1,2034.8,5.72753]
[1742998455372,0.55,2035.1,2034.8,5.72749]
[1742998455734,0.55,2035.1,2034.7,4.91472]
[1742998455940,0.55,2035.1,2035.0,4.914]
[1742998456172,0.55,2035.3,2035.0,4.914]
[1742998456481,0.4733,2035.5,2035.1,0.04913807]
[1742998456774,5.329,2035.5,2035.1,4.91376]
[1742998456937,4.53323758,2035.4,2035.0,5.68279]
[1742998457137,5.329,2035.5,2035.2,4.9135]
[1742998457336,0.55,2035.4,2035.1,4.91367]
[1742998457565,5.08323758,2035.2,2035.1,14.5]
[1742998457765,0.55,2035.1,2034.8,4.91433]
[1742998457975,0.55,2035.1,2034.9,4.91416]
[1742998458172,0.55,2035.3,2035.0,4.91399]
[1742998458375,0.55,2035.3,2034.9,14.5]
[1742998458536,0.55,2035.3,2035.0,4.91395]
[1742998459384,0.55,2035.3,2034.9,24.32837]
[1742998459559,0.55,2035.3,2034.9,19.41414]
[1742998460074,0.55,2035.3,2035.0,4.91398]
[1742998460576,0.55,2035.3,2034.9,19.41414]
[1742998460577,5.00653758,2035.2,2034.9,14.5]
[1742998460787,10.96712934,2035.2,2034.9,14.5]
[1742998460962,6.05351934,2035.2,2034.9,14.5]
[1742998461146,0.4733,2035.2,2034.9,14.5]
[1742998461352,0.55,2035.3,2034.9,19.41405]
[1742998461578,0.55,2035.3,2034.9,24.32818]
[1742998461880,0.55,2035.3,2035.1,4.91365]
[1742998462072,5.877,2035.5,2035.1,4.91365]
[1742998462377,0.4733,2035.6,2035.3,4.91321]
[1742998462588,0.4733,2035.6,2035.1,7.42837862]
[1742998462780,0.55,2035.5,2035.2,4.91344]
[1742998462962,0.55,2035.5,2035.1,7.42837862]
[1742998463162,0.55,2035.5,2035.0,0.7696]
[1742998463367,0.55,2035.5,2035.1,4.9137]
[1742998463875,5.46283,2035.5,2035.0,0.7696]
[1742998464075,5.46283,2035.5,2035.0,5.68346]
[1742998464076,0.55,2035.5,2035.0,5.68346]
[1742998464277,0.55,2035.5,2035.1,2.018346]
[1742998464458,0.55,2035.5,2035.1,6.932076]
[1742998464779,0.55,2035.5,2035.1,2.018346]
[1742998465180,0.55,2035.5,2035.1,6.98114787]
[1742998465484,5.46284,2035.5,2035.0,5.68358]
[1742998465781,9.44633758,2035.4,2034.9,14.5]
[1742998465985,4.53323758,2035.2,2034.9,14.5]
[1742998466356,9.44684758,2035.2,2034.9,14.5]
[1742998466686,0.55,2035.0,2034.6,10.60707]
[1742998466873,0.55,2035.0,2034.6,12.102604]
[1742998467078,0.55,2035.0,2034.7,14.5]
[1742998467255,5.08323758,2035.0,2034.7,14.5]
[1742998467458,5.46484,2034.7,2034.3,0.7773]
[1742998467685,0.55,2034.5,2034.1,10.69896006]
[1742998468020,0.55,2034.5,2034.2,16.07356]
[1742998468354,0.55,2034.5,2034.2,14.5]
[1742998468685,0.55,2034.6,2034.2,19.41573]
[1742998468892,0.55,2034.6,2034.2,19.41584]
[1742998469182,0.55,2034.6,2034.2,14.5]
[1742998469384,9.99834758,2034.6,2034.2,14.5]
[1742998469552,9.99834758,2034.6,2034.1,5.78286006]
[1742998469553,5.08323758,2034.4,2034.1,5.00556006]
[1742998469761,0.55,2034.5,2034.1,5.00556006]
[1742998470173,0.55,2034.5,2034.1,19.50556006]
[1742998470593,5.46524,2034.5,2034.1,19.50556006]
[1742998470763,0.55,2034.5,2034.1,19.50556006]
[1742998470957,0.55,2034.5,2034.1,24.42162006]
[1742998471493,0.55,2034.5,2034.1,19.50556006]
[1742998471692,5.46521,2034.5,2034.1,14.5]
[1742998471868,7.69446323,2034.5,2034.1,14.5]
[1742998472595,0.4733,2034.2,2034.0,0.1202399]
[1742998472754,0.55,2034.1,2034.0,0.1202399]
[1742998472954,0.55,2034.3,2034.1,4.91614]
[1742998473195,0.55,2034.3,2034.1,14.5]
[1742998473359,10.94413637,2034.3,2034.1,14.5]
[1742998473693,10.94413637,2034.3,2034.0,0.1202399]
[1742998474190,0.55,2034.3,2034.0,14.6202399]
[1742998474779,1.0233,2034.4,2034.0,19.5364699]
[1742998474980,0.55,2034.3,2034.0,14.6202399]
[1742998475204,5.08323758,2034.3,2034.0,14.6202399]
[1742998475401,0.55,2034.3,2034.0,14.6202399]
[1742998475804,5.08323758,2034.3,2034.0,14.6202399]
[1742998476108,10.55473134,2034.3,2034.0,0.1202399]
[1742998476282,5.08323758,2034.1,2034.0,0.1202399]
[1742998476601,5.55653758,2034.1,2034.0,0.1202399]
[1742998477103,0.55,2034.1,2034.0,0.1202399]
[1742998479594,0.4733,2034.3,2034.0,0.1202399]
[1742998479801,0.55,2034.3,2034.0,0.62391089]
[1742998480913,0.55,2034.3,2034.0,0.1202399]
[1742998481206,0.55,2034.3,2034.1,14.5]
[1742998481895,0.55,2034.2,2034.0,0.1202399]
[1742998482099,0.55,2034.3,2034.0,0.1202399]
[1742998482495,0.55,2034.3,2034.1,14.5]
[1742998483410,4.53323758,2034.2,2034.1,14.5]
[1742998483584,0.55,2034.1,2034.0,0.1202399]
[1742998483998,0.55,2034.3,2034.0,0.1202399]
[1742998484209,0.4733,2034.5,2034.1,4.91596]
[1742998484414,0.4733,2034.5,2034.1,9.83196]
[1742998484711,0.55,2034.4,2034.1,8.16237999]
[1742998484912,0.55,2034.4,2034.1,0.8012]
[1742998485112,0.55,2034.4,2034.1,5.71718]
[1742998485417,0.55,2034.4,2034.1,5.71735]
[1742998486613,10.33053758,2034.7,2034.1,0.8012]
[1742998486819,0.55,2034.6,2034.3,4.91547]
[1742998486982,0.55,2034.6,2034.4,0.98805349]
[1742998487530,0.55,2034.6,2034.3,4.91547]
[1742998488237,0.55,2034.7,2034.3,4.91547]
[1742998488382,3.0,2034.9,2034.3,0.04915175]
[1742998488693,4.91371,2035.2,2034.7,4.91456]
[1742998488694,10.90340725,2035.2,2034.7,4.91456]
[1742998488887,22.72278898,2035.2,2034.7,4.91456]
[1742998489087,17.80907898,2035.2,2034.7,4.91456]
[1742998489326,17.80907898,2035.2,2034.6,4.91479]
[1742998489327,4.53323758,2035.0,2034.6,4.91479]
[1742998489496,0.55,2034.9,2034.6,4.91479]
[1742998489826,10.33053758,2035.2,2034.7,4.91459]
[1742998490032,10.33053758,2035.2,2034.7,5.4894234]
[1742998490189,20.15775758,2035.2,2034.7,0.5748334]
[1742998490391,4.91386,2035.1,2034.6,9.82959]
[1742998490590,0.55,2035.0,2034.7,4.91472]
[1742998490789,0.55,2035.0,2034.5,0.7846]
[1742998490790,9.99723758,2035.0,2034.5,5.69974]
[1742998490991,9.99723758,2035.0,2034.5,10.61479]
[1742998491293,9.99723758,2035.0,2034.5,5.69965]
[1742998491490,4.91432,2034.9,2034.5,0.7846]
[1742998492184,7.15407734,2035.0,2034.6,4.91495]
[1742998492418,4.53323758,2035.1,2034.6,4.91487]
[1742998492719,0.55,2035.1,2034.6,4.91487]
[1742998492929,4.53323758,2035.0,2034.5,5.69979]
[1742998493098,0.55,2034.7,2034.4,4.91536]
[1742998493414,0.55,2034.7,2034.4,9.83067]
[1742998493715,0.55,2034.7,2034.3,5.70207]
[1742998493900,0.55,2034.5,2034.2,4.91589]
[1742998494100,0.55,2034.5,2034.2,4.9158]
[1742998494990,0.55,2034.7,2034.3,4.91567]
[1742998495685,5.46475,2034.7,2034.2,4.9158]
[1742998495891,0.55,2034.5,2034.2,4.9158]
[1742998496411,0.55,2034.5,2034.2,4.91577]
[1742998496612,0.55,2034.5,2034.1,4.91615]
[1742998496827,0.55,2034.5,2034.2,4.91585]
[1742998497228,0.55,2034.5,2034.1,4.91606]
[1742998497729,2.57341176,2034.5,2034.0,10.7388299]
[1742998498047,7.48870176,2034.5,2034.1,4.91616]
[1742998498235,3.55,2034.6,2034.2,4.91585]
[1742998498529,8.46506,2034.6,2034.1,9.83205]
[1742998498907,8.46506,2034.6,2034.2,4.91593]
[1742998499120,3.55,2034.6,2034.2,4.91593]
[1742998499320,0.55,2034.4,2034.0,0.9061399]
[1742998499522,0.55,2034.2,2034.0,5.0366099]
[1742998500523,9.99831758,2034.6,2034.1,4.91608]
[1742998500751,9.99831758,2034.6,2034.1,5.41966199]
[1742998501059,5.08323758,2034.6,2034.2,5.76028443]
[1742998501253,0.4733,2034.7,2034.4,4.91534]
[1742998501411,15.62144,2035.0,2034.5,4.91499]
[1742998501612,0.55,2034.8,2034.4,4.91545]
[1742998501843,0.55,2034.8,2034.5,4.91506]
[1742998502413,0.55,2034.8,2034.5,9.83016]
[1742998502757,0.55,2034.8,2034.4,5.978072]
[1742998502958,0.55,2034.8,2034.5,4.91509]
[1742998503254,0.55,2034.9,2034.5,9.83013]
[1742998503423,5.32,2035.2,2034.8,4.91434]
[1742998503625,0.55,2035.0,2034.7,9.82935]
[1742998503842,0.55,2035.0,2034.7,4.91463]
[1742998504243,0.55,2035.0,2034.6,4.91495]
[1742998504753,5.46405,2035.0,2034.6,4.91495]
[1742998505053,5.46404,2035.0,2034.5,5.698]
[1742998505224,5.46404,2035.0,2034.5,5.69786]
[1742998505621,0.55,2034.6,2034.3,5.73816]
[1742998505828,0.55,2034.6,2034.3,4.9156]
[1742998506039,0.55,2034.6,2034.1,1.37528392]
[1742998506040,0.55,2034.4,2034.2,4.91582]
[1742998506411,0.55,2034.6,2034.2,5.69902]
[1742998506608,4.53323758,2034.5,2034.0,0.1202399]
[1742998506810,0.55,2034.3,2034.1,4.91608]
[1742998507155,0.4733,2034.8,2034.1,4.91608]
[1742998507156,5.7923,2034.8,2034.5,4.91512]
[1742998507463,0.55,2034.7,2034.5,4.91509]
[1742998507812,0.55,2034.7,2034.5,4.91505]
[1742998508063,0.4733,2035.0,2034.6,4.96411772]
[1742998508348,0.55,2034.9,2034.5,4.91511]
[1742998508551,0.55,2034.9,2034.3,0.7991]
[1742998508552,5.46425,2034.9,2034.3,0.7991]
[1742998508840,0.55,2034.7,2034.4,4.91537]
[1742998509055,0.55,2034.5,2034.3,0.7991]
[1742998509236,0.55,2034.5,2034.3,5.71471]
[1742998509436,0.55,2034.5,2034.3,10.63026]
[1742998509832,4.64130461,2034.8,2034.4,4.91531]
[1742998510033,5.7913,2035.2,2034.8,4.9143]
[1742998510234,4.91307,2035.4,2035.2,4.91331]
[1742998510235,0.4733,2035.4,2035.2,4.91331]
[1742998510544,5.38562,2035.7,2035.3,4.91323]
[1742998510713,5.38562,2035.7,2035.4,4.91303]
[1742998510714,4.56460461,2035.7,2035.4,4.91303]
[1742998511012,4.56460461,2035.7,2035.3,4.91318]
[1742998511013,9.18005007,2035.7,2035.3,4.91318]
[1742998511209,4.56460461,2035.7,2035.3,4.91319]
[1742998511444,0.4733,2035.7,2035.2,5.71841]
[1742998511648,4.09130461,2035.5,2035.1,4.91375]
[1742998511883,0.55,2035.2,2034.8,4.9144]
[1742998512035,0.55,2035.0,2034.7,5.70501]
[1742998512235,0.55,2035.0,2034.9,4.91424]
[1742998512432,0.55,2035.2,2035.0,4.91391]
[1742998512738,0.64286991,2035.4,2035.3,4.91328]
[1742998512933,0.09286991,2035.4,2035.3,4.91328]
[1742998513338,0.09286991,2035.4,2035.2,4.91332]
[1742998513577,0.09286991,2035.4,2035.2,5.974466]
[1742998513758,0.55,2035.3,2035.1,5.69808]
[1742998514062,0.55,2035.3,2034.9,4.9142]
[1742998514063,0.55,2035.1,2034.9,4.9142]
[1742998514266,0.62573796,2035.0,2034.9,4.9142]
[1742998514634,0.07573796,2035.0,2034.9,4.96333712]
[1742998514865,0.024955,2035.4,2035.2,4.91335]
[1742998515074,0.07484637,2035.3,2035.2,4.96247891]
[1742998515372,15.22899174,2035.6,2035.2,0.98761889]
[1742998515560,15.22899174,2035.6,2035.1,4.9137]
[1742998515561,0.02253021,2035.3,2035.1,4.9137]
[1742998515734,0.55,2035.5,2035.1,4.9137]
[1742998515940,0.02214235,2035.2,2035.1,4.9137]
[1742998516152,0.55,2035.5,2035.1,4.9137]
[1742998516350,0.02214235,2035.2,2035.1,4.9137]
[1742998516546,0.55,2035.5,2035.1,5.896468]
[1742998516767,0.02214235,2035.2,2035.1,4.9137]
[1742998517069,0.55,2035.5,2035.2,4.91352]
[1742998517977,0.55,2035.5,2035.0,4.91395]
[1742998518165,10.31627174,2035.6,2034.8,4.91432]
[1742998518166,5.4634,2035.3,2034.8,4.91432]
[1742998518877,5.4634,2035.3,2034.8,9.82866]
[1742998519242,7.00107117,2035.3,2034.8,9.82868]
[1742998519473,0.55,2035.3,2035.1,4.91367]
[1742998519877,0.55,2035.4,2034.9,0.85733243]
[1742998520075,0.55,2035.4,2035.2,4.91342]
[1742998520370,0.55,2035.4,2035.0,4.91377]
[1742998520583,0.55,2035.4,2035.1,4.91365]
[1742998520773,0.55,2035.4,2035.1,1.063562]
[1742998520974,0.55,2035.4,2035.0,4.91382]
[1742998521277,5.46304,2035.4,2035.0,4.91382]
[1742998521479,0.55,2035.4,2035.0,4.91382]
[1742998521678,5.46314,2035.4,2034.9,5.72244]
[1742998521860,0.4733,2035.5,2035.1,4.9136]
[1742998522056,5.7873,2035.7,2035.2,10.32290368]
[1742998522259,5.7873,2035.7,2035.2,4.9133]
[1742998522260,0.55,2035.6,2035.2,4.9133]
[1742998522777,5.07697174,2035.6,2035.1,5.74534]
[1742998522978,0.55,2035.4,2035.0,4.91393]
[1742998523158,0.55,2035.5,2035.0,4.96301476]
[1742998523360,0.55,2035.5,2035.3,4.91304]
[1742998523565,0.55,2035.6,2035.3,5.404344]
[1742998524170,0.55,2035.6,2035.5,4.91279]
[1742998524371,4.92958,2036.9,2035.3,0.54043174]
[1742998524372,0.45332376,2036.6,2035.3,1.266704]
[1742998524678,0.4733,2035.9,2035.5,4.91275]
[1742998524883,0.4733,2035.9,2035.6,4.91255]
[1742998525752,0.55,2035.8,2035.6,4.91255]
[1742998525977,0.4733,2035.5,2035.0,4.91391]
[1742998526183,0.4733,2035.5,2034.4,7.25695935]
[1742998526184,5.07697174,2035.4,2034.9,4.91419]
[1742998526379,0.55,2035.4,2035.0,9.82776]
[1742998526587,0.55,2035.4,2035.1,4.91375]
[1742998527082,0.55,2035.4,2035.0,4.91388]
[1742998527289,0.55,2035.4,2035.0,4.96301477]
[1742998527785,0.55,2035.4,2035.0,4.91388]
[1742998527986,0.55,2035.4,2035.1,4.91375]
[1742998528184,0.4733,2035.5,2035.1,4.91367]
[1742998528388,0.55,2035.4,2035.2,4.91342]
[1742998529267,0.55,2035.4,2035.2,4.91345]
[1742998529578,0.55,2035.4,2035.0,4.91383]
[1742998529777,0.55,2035.4,2035.0,4.96296476]
[1742998529978,0.55,2035.4,2035.1,4.9137]
[1742998530379,0.55,2035.4,2035.0,4.91383]
[1742998530599,0.55,2035.4,2035.0,4.96296475]
[1742998531090,0.55,2035.2,2035.0,0.04913475]
[1742998531288,0.55,2035.0,2034.6,0.7669]
[1742998531464,0.55,2035.0,2034.5,4.91511]
[1742998531465,0.55,2034.8,2034.5,4.91511]
[1742998532157,0.55,2034.8,2034.5,4.91502]
[1742998532359,0.55,2034.8,2034.6,4.91481]
[1742998532560,0.55,2034.8,2034.5,5.5896446]
[1742998532999,4.64026183,2034.8,2034.5,5.5896446]
[1742998533285,0.55,2034.8,2034.5,4.96418567]
[1742998533491,0.55,2034.8,2034.6,4.91482]
[1742998533882,4.64026183,2034.8,2034.5,4.91504]
[1742998534689,4.64026183,2034.8,2034.4,5.68234]
[1742998534892,9.55475183,2034.8,2034.4,4.91544]
[1742998535097,0.55,2034.8,2034.5,4.91509]
[1742998535395,0.55,2034.8,2034.6,4.91488]
[1742998535563,0.55,2034.8,2034.6,9.82972]
[1742998535763,0.55,2034.8,2034.5,4.91514]
[1742998535993,14.86674183,2034.8,2034.3,4.91566]
[1742998536200,3.0,2034.7,2034.3,4.91554]
[1742998536407,0.55,2034.6,2034.3,4.91554]
[1742998536961,0.55,2034.4,2034.1,4.91607]
[1742998537166,0.55,2034.4,2034.2,4.91591]
[1742998537384,0.55,2034.4,2034.2,9.8317]
[1742998537592,0.55,2034.7,2034.5,4.91507]
[1742998537892,0.55,2034.7,2034.4,4.91545]
[1742998538189,0.55,2034.5,2034.3,4.91565]
[1742998538396,0.55,2034.7,2034.3,4.91552]
[1742998539064,4.09026183,2034.6,2034.2,4.91592]
[1742998539266,0.55,2034.5,2034.1,4.91614]
[1742998539490,0.55,2034.5,2034.2,4.91593]
[1742998540296,0.4733,2034.8,2034.5,4.91514]
[1742998540599,0.4733,2034.8,2034.4,4.91537]
[1742998540600,3.55,2034.7,2034.4,4.91537]
[1742998540964,7.64026183,2034.7,2034.4,4.91537]
[1742998541160,8.64529406,2034.7,2034.4,4.91537]
[1742998541364,3.55,2034.7,2034.4,4.91537]
[1742998541585,3.55,2034.7,2034.4,9.83066]
[1742998541873,0.55,2034.7,2034.5,4.9151]
[1742998542483,0.55,2034.7,2034.5,9.83018]
[1742998542683,0.55,2034.7,2034.5,4.91508]
[1742998542972,3.55,2034.8,2034.6,9.82976]
[1742998543373,3.55,2034.8,2034.6,4.91479]
[1742998543574,0.55,2034.8,2034.6,4.91479]
[1742998544175,0.55,2034.8,2034.5,1.060452]
[1742998544477,0.55,2034.8,2034.5,4.915]
[1742998544698,0.55,2034.8,2034.6,4.91488]
[1742998544903,0.4733,2035.2,2034.4,0.774]
[1742998545218,0.4733,2035.5,2034.9,0.7962]
[1742998545373,9.00341183,2035.4,2035.0,4.9138]
[1742998545570,9.00341183,2035.4,2034.9,4.91422]
[1742998545571,4.09026183,2035.2,2034.9,4.91422]
[1742998545774,4.09026183,2035.0,2034.8,4.91447]
[1742998545984,4.09026183,2035.0,2034.7,4.9145]
[1742998546203,1.0233,2035.1,2034.8,4.91437]
[1742998547196,1.0233,2035.1,2034.7,4.9145]
[1742998547378,5.93707,2035.1,2034.7,4.9145]
[1742998547579,0.55,2034.7,2034.5,4.9152]
[1742998547804,0.5233,2034.7,2034.5,4.91519]
[1742998548001,4.09026183,2034.8,2034.5,9.83021]
[1742998548201,4.09026183,2035.0,2034.7,4.91454]
[1742998548416,3.0,2035.0,2034.9,4.91424]
[1742998548995,4.09026183,2035.2,2034.9,4.91424]
[1742998549395,7.09026183,2035.0,2034.6,4.91478]
[1742998549597,0.4733,2034.9,2034.6,5.897779]
[1742998549814,4.56356183,2034.9,2034.6,5.897779]
[1742998550017,0.4733,2034.9,2034.6,5.94692266]
[1742998550326,0.4733,2034.9,2034.6,0.982999]
[1742998550327,4.09026183,2034.7,2034.6,0.982999]
[1742998550525,4.09026183,2034.7,2034.4,9.83065]
[1742998550704,4.09026183,2034.7,2034.5,4.91518]
[1742998551023,4.09026183,2034.7,2034.5,9.8303]
[1742998551325,4.09026183,2034.7,2034.4,4.9154]
[1742998551529,5.46458,2034.8,2034.4,4.9154]
[1742998551727,0.55,2034.4,2034.1,0.768]
[1742998552025,4.09026183,2034.3,2034.1,5.68417]
[1742998552223,4.09026183,2034.3,2034.1,5.7333263]
[1742998552422,4.09026183,2034.3,2034.1,5.68403]
[1742998552723,4.09026183,2034.5,2034.2,4.91593]
[1742998552924,0.4733,2034.7,2034.4,4.91524]
[1742998553226,0.4733,2034.7,2034.4,9.83058]
[1742998553435,0.4733,2034.7,2034.5,4.91519]
[1742998553436,0.55,2034.7,2034.5,4.91519]
[1742998553599,10.69668,2034.9,2034.5,4.91519]
[1742998553600,9.39926183,2034.9,2034.5,5.71999]
[1742998553792,9.39926183,2034.9,2034.1,1.07206699]
[1742998553793,0.55,2034.8,2034.4,4.91545]
[1742998553998,4.64026183,2034.8,2034.5,0.572025]
[1742998554199,4.64026183,2034.8,2034.5,4.91513]
[1742998554395,0.55,2034.8,2034.6,4.91491]
[1742998554622,0.55,2034.8,2034.7,4.91472]
[1742998554825,0.55,2034.8,2034.6,4.91492]
[1742998555100,0.55,2034.8,2034.6,4.96395586]
[1742998555307,0.55,2034.8,2034.6,5.41134559]
[1742998555594,4.64026183,2034.8,2034.5,4.91519]
[1742998555797,4.09026183,2034.6,2034.4,4.91543]
[1742998556029,4.09026183,2034.6,2034.3,4.91562]
[1742998556223,4.09026183,2034.6,2034.3,9.83117]
[1742998556527,0.55,2034.5,2034.1,6.73831699]
[1742998556732,0.55,2034.5,2034.2,5.60175569]
[1742998556928,0.55,2034.5,2034.2,20.15076836]
[1742998557112,0.55,2034.7,2034.4,4.91527]
[1742998557300,0.55,2034.7,2034.4,4.96441947]
[1742998557842,0.55,2034.7,2034.5,14.5]
[1742998558020,4.64026183,2034.6,2034.5,14.5]
[1742998559027,4.64026183,2034.6,2034.2,5.60160569]
[1742998559204,4.64026183,2034.6,2034.3,5.70707695]
[1742998559410,4.64026183,2034.6,2034.4,14.5]
[1742998559732,4.64026183,2034.6,2034.4,19.41542]
[1742998560137,0.55,2034.6,2034.4,19.41542]
[1742998561126,3.4733,2034.8,2034.4,14.5]
[1742998561433,3.0,2034.8,2034.5,6.4885359]
[1742998561633,3.0,2034.8,2034.5,11.4036559]
[1742998561828,0.55,2034.8,2034.5,6.43935973]
[1742998562130,4.09026183,2034.7,2034.6,14.5]
[1742998562329,13.02828183,2034.7,2034.6,14.5]
[1742998562531,0.55,2034.6,2034.3,4.91558]
[1742998562735,0.4733,2034.9,2034.4,0.04915005]
[1742998562920,0.55,2034.8,2034.6,4.91476]
[1742998563230,4.09026183,2035.0,2034.7,4.91462]
[1742998563538,4.09026183,2035.0,2034.4,1.73170919]
[1742998563539,4.09026183,2034.8,2034.4,1.73170919]
[1742998563698,4.09026183,2034.5,2034.2,4.91577]
[1742998564038,4.09026183,2034.5,2034.3,14.5]
[1742998564499,10.02841183,2034.7,2034.3,14.5]
[1742998564700,10.02841183,2034.7,2034.3,19.41562]
[1742998564928,1.0233,2034.7,2034.5,4.91509]
[1742998565108,0.55,2034.7,2034.5,6.856599]
[1742998565312,0.55,2034.7,2034.5,5.71079]
[1742998565507,0.55,2034.7,2034.6,14.5]
[1742998566599,5.38733,2035.0,2034.6,14.5]
[1742998566600,4.56356183,2035.0,2034.7,4.91449]
[1742998566801,3.0,2035.0,2034.7,4.96370486]
[1742998567136,4.09026183,2035.0,2034.7,4.96379486]
[1742998567429,4.09026183,2035.0,2034.7,4.91465]
[1742998567637,4.09026183,2035.0,2034.8,0.982959]
[1742998567932,4.09026183,2035.2,2034.9,4.91403]
[1742998568100,7.09026183,2035.2,2034.9,4.91403]
[1742998568299,9.47670183,2035.4,2034.9,0.81293844]
[1742998568501,5.38593,2035.6,2035.2,4.91343]
[1742998568732,4.56356183,2035.6,2035.2,5.896186]
[1742998568942,4.09026183,2035.4,2035.1,4.91373]
[1742998569315,3.0,2035.5,2035.2,4.91339]
[1742998569908,3.0,2035.5,2035.3,4.91327]
[1742998570103,3.0,2035.5,2035.2,4.91351]
[1742998570303,4.09026183,2035.4,2035.0,4.91384]
[1742998570548,0.55,2035.3,2035.0,10.4961599]
[1742998570742,0.55,2035.3,2035.0,0.6685299]
[1742998570939,4.09026183,2035.2,2034.8,5.897439]
[1742998571231,4.09026183,2035.2,2034.8,10.811789]
[1742998571438,9.00380183,2035.2,2034.8,5.897309]
[1742998571605,9.00380183,2035.2,2034.5,4.91516]
[1742998571606,0.55,2034.9,2034.5,5.70609]
[1742998571802,0.55,2034.9,2034.6,0.04914249]
[1742998572022,0.55,2034.9,2034.6,4.96399249]
[1742998572225,0.55,2034.7,2034.3,4.9156]
[1742998572524,5.46487,2034.7,2034.2,5.67533]
[1742998572712,0.55,2034.5,2034.2,2.36108399]
[1742998572916,0.55,2034.5,2034.2,5.67524]
[1742998573333,0.55,2034.3,2034.1,4.91615]
[1742998573721,0.55,2034.3,2034.1,4.96530688]
[1742998573954,28.356,2035.6,2034.2,14.5]
[1742998574163,28.356,2035.6,2034.4,4.91537]
[1742998574164,0.55,2034.6,2034.4,4.91537]
[1742998574452,4.9132,2035.4,2034.7,4.91466]
[1742998574453,9.00414183,2035.1,2034.7,4.91466]
[1742998574655,9.00453183,2034.9,2034.5,4.91507]
[1742998574824,4.09026183,2034.9,2034.6,14.5]
[1742998575025,4.09026183,2034.9,2034.6,19.41488]
[1742998575226,4.09026183,2034.9,2034.6,21.73965194]
[1742998575628,4.09026183,2034.9,2034.6,16.82477194]
[1742998575910,4.09026183,2034.9,2034.6,21.73960194]
[1742998576106,4.09026183,2034.9,2034.7,4.96382235]
[1742998576331,4.09026183,2034.9,2034.7,4.91468]
[1742998576530,0.55,2035.0,2034.7,6.36959569]
[1742998576739,0.55,2035.0,2034.8,4.91447]
[1742998576934,0.55,2035.0,2034.7,6.36953569]
[1742998577135,5.464,2035.0,2034.7,1.45491569]
[1742998577335,0.55,2034.8,2034.6,14.5]
[1742998577535,0.55,2034.6,2034.2,10.61394]
[1742998577738,5.46499,2034.6,2034.2,5.69801]
[1742998577919,0.55,2034.6,2034.3,19.41569]
[1742998578240,5.31468002,2034.5,2034.3,19.41569]
[1742998578408,5.31468002,2034.5,2034.3,21.92706]
[1742998578607,5.31468002,2034.5,2034.3,7.427]
[1742998578813,4.64026183,2034.4,2034.1,4.91609]
[1742998579334,4.64026183,2034.4,2034.2,14.5]
[1742998579840,5.11356183,2034.4,2034.2,14.5]
[1742998580945,10.02909183,2034.4,2034.2,14.5]
[1742998581509,5.31468002,2034.5,2034.3,4.91569]
[1742998581714,5.31468002,2034.5,2034.3,1.941569]
[1742998582222,5.31468002,2034.5,2034.4,5.68075]
[1742998582623,5.31468002,2034.5,2034.4,4.96459658]
[1742998582822,5.31468002,2034.5,2034.4,5.73189658]
[1742998583043,0.13953002,2034.5,2034.4,8.73189658]
[1742998583244,2e-08,2034.5,2034.4,10.93611652]
[1742998583545,5.303,2035.4,2035.1,0.7861]
[1742998583742,5.303,2035.4,2035.1,5.69969]
[1742998584040,0.4733,2035.7,2035.4,4.91293]
[1742998584249,4.09026183,2035.8,2035.4,9.87496456]
[1742998584414,0.55,2035.7,2035.4,4.91291]
[1742998584616,4.09026183,2035.8,2035.5,4.91262]
[1742998584935,4.09026183,2035.8,2035.4,4.91285]
[1742998585136,4.09026183,2035.8,2035.5,4.91276]
[1742998585632,4.09026183,2036.0,2035.6,0.8319]
[1742998586145,4.09026183,2036.0,2035.6,5.74445]
[1742998586446,9.00200183,2036.0,2035.6,5.74445]
[1742998586646,9.3253,2036.2,2035.4,0.8319]
[1742998586647,4.09026183,2035.8,2035.4,0.8319]
[1742998586842,4.09026183,2035.6,2035.3,4.91327]
[1742998587063,0.55,2035.5,2035.1,0.8319]
[1742998587356,4.91354,2035.2,2034.8,5.70186]
[1742998587518,0.55,2035.2,2034.9,4.91411]
[1742998587718,0.55,2035.3,2035.0,4.91397]
[1742998588446,3.0,2035.5,2035.1,4.91367]
[1742998588615,5.38597,2035.6,2035.2,4.91347]
[1742998588818,0.55,2035.5,2035.2,4.91347]
[1742998589018,0.55,2035.3,2034.8,5.70184]
[1742998589317,4.91402,2035.0,2034.5,5.68037]
[1742998589520,4.91402,2035.0,2034.5,6.739808]
[1742998589943,9.82822,2035.0,2034.5,5.68024]
[1742998590261,9.82822,2035.0,2034.2,4.9159]
[1742998590262,0.55,2034.7,2034.3,4.91558]
[1742998590935,0.55,2034.5,2034.2,0.7652]
[1742998591149,0.55,2034.5,2034.2,0.0491514]
[1742998591514,0.55,2034.5,2034.2,4.9650414]
[1742998591744,5.46531,2034.5,2034.0,5.0365299]
[1742998591945,4.91545,2034.4,2034.0,6.20550934]